Workbook

Sheet test
A30: # | B30: DESCREIPANCY DESCRIPTION | D30: PERCENTAGE | E30: REASON
A50: # | B50: بيان | C50: القيم المبدئية | D50: القيم الفعلية | E50: الفرق | F50: السبب
A51: 1 | B51: input 1 | E51: 22192.33
A52: 2 | B52: input 2
A53: 3 | B53: input 3 | C53: 18.9574
A54: 4 | B54: input 4 | C54: =(E51+D51)*C53 -> 420708.8767
A55: 5 | B55: input 5 | C55: 1005
A56: 6 | B56: input 6
A57: 7 | B57: input 7
A58: 8 | B58: input 8 | C58: =C55+((E55+D55)*C57) -> 1005
A59: 9 | B59: input 9 | E59: 50
A60: 10 | B60: input 10
A61: 11 | B61: input 11 | C61: 18.9574
A62: 12 | B62: input 12 | C62: =(E59+D59)*C61 -> 947.87
A63: 13 | B63: input 13 | C63: =C54+C58+C62 -> 422661.7467
A64: 14 | B64: input 14 | C64: 354
A65: 15 | B65: input 15 | C65: =SUM(C63:C64) -> 423015.7467
A66: 16 | B66: input 16
A67: 17 | B67: input 17 | C67: =C65+C73 -> 423015.7467
A68: 18 | B68: input 18
A70: 19 | B70: input 20 | C70: 75.2
A71: 20 | B71: input 21 | C71: =(C67+C68)*0.14 -> 59222.20454
A72: 21 | B72: input 22 | C72: =(C65+C68)*0.01 -> 4230.157467
A73: 22 | B73: input 23 | C73: =C65*C66 -> 0
A74: 23 | B74: input 24 | C74: 50
A75: 24 | B75: input 25 | C75: 100
A76: 25 | B76: input 26 | C76: 1197
A77: 26 | B77: input 27 | C77: 136.8
A78: 27 | B78: input 28 | C78: 90 | G78: =IFERROR(IF((E78/C78)>0.05,"YES","NO"),"") -> NO | AC78: عمولة تحويل بنكي
G79: =IFERROR(IF((E79/C79)>0.05,"YES","NO"),"") -> 
A80: 28 | B80: input 29 | C80: =2250*1.14 -> 2565 | D80: 2700 | E80: =D80-C80 -> 135 | G80: YES
A81: 29 | B81: input 30 | E81: =D81-C81 -> 0 | AC81: سحب الإذن بالجنية
A82: 30 | B82: input 31 | E82: 0 | AC82: سعر الصرف الجمركي
A83: 31 | B83: input 32 | E83: 0 | AC83: Documentation Fees / BL OR Invoice
A84: 32 | B84: input 33 | E84: 0 | AC84: إيصالات توكيل
A85: 33 | B85: input 34 | C85: =2250*1.14 -> 2565 | E85: -2565 | G85: NO
A86: 34 | B86: input 35 | E86: 0 | AC86: غرامات (متوقع)
A88: 35 | B88: input 36 | E88: =D88-C88 -> 0 | AC88: رسوم هيئة
A89: 36 | B89: input 37 | C89: 100 | D89: 107 | E89: 7 | G89: YES
A90: 37 | B90: input 38 | E90: 0 | AC90: مصاريف الدمغة والموازين
A91: 38 | B91: input 39 | E91: 0 | AC91: مصاريف عرض الواردات
A92: 39 | B92: input 40 | E92: 0 | AC92: مصاريف عرض صحة
A93: 40 | B93: input 41 | C93: 350 | D93: 350 | E93: 0 | G93: NO
A94: 41 | B94: input 42 | E94: 0 | AC94: وزن زائد (متوقع)
A96: 42 | B96: input 43 | AC96: مصاريف دخول ساحة
A98: 43 | B98: input 44 | AC98: مصاريف دخول ساحة
A99: 44 | B99: input 45 | AC99: تعبئه و تفريغ الحاويات كلارك
A100: 45 | B100: input 46 | AC100: ايصال تعتيق
A101: 46 | B101: input 47 | AC101: إيجار - أرضيات منطقة تخزين
A103: 47 | B103: input 49 | C103: 3520 | D103: 3500 | E103: =D103-C103 -> -20 | G103: NO
A104: 48 | B104: input 50 | AC104: أتعاب عرض زراعة
A105: 49 | B105: input 51 | AC105: أتعاب عرض الدمغة والموازين
A106: 50 | B106: input 52 | AC106: أتعاب عرض الواردات
A107: 51 | B107: input 53 | AC107: أتعاب عرض حجر صحي
A108: 52 | B108: input 54 | AC108: أتعاب عرض صحة
A110: 53 | B110: input 56 | C110: =3000*1.14 -> 3420 | D110: 4000 | E110: =D110-C110 -> 580 | G110: YES
A111: 54 | B111: input 57 | C111: 400 | D111: 400 | E111: 0 | G111: NO
A113: 55 | B113: input 59 | AC113: النولون
A114: 56 | B114: input 60 | AC114: مصروف تسليم Handover Charges
A115: 57 | B115: input 61 | AC115: المنصرف للتأمين
A117: 58 | B117: input 63 | AC117: مصروف 1 ..............................................
A118: 59 | B118: input 64
A119: 60 | B119: input 65
